[Event "ESP-ch Teams Primera 2022"]
[Site "Sanxenxo Pontevedra"]
[Date "2022.09.23"]
[Round "7.11"]
[White "Quintin Navarro, Alberto"]
[Black "Alshameary Puente, Ismael"]
[Result "1-0"]
[ECO "E04"]
[WhiteElo "2372"]
[BlackElo "2332"]
[Annotator "TA"]
[PlyCount "103"]
[EventDate "2022.09.17"]
[EventType "team-tourn"]
[EventCountry "ESP"]
[SourceTitle "playchess.com"]
[Source "ChessBase"]
[SourceQuality "1"]
[TimeControl "5400+30"]

{[%evp 18,103,-5,-2,5,8,0,0,25,43,45,53,41,42,31,25,103,71,64,92,84,61,102,47,121,102,178,191,235,236,358,33,45,25,73,29,33,35,52,28,28,28,91,70,70,92,88,43,81,0,0,0,0,0,0,0,8,0,92,0,114,112,137,129,208,195,195,190,316,322,431,430,622,624,622,603,580,560,1101,0,439,405,487,172,1424,1128,1044,1007]} 1. Nf3 d5 2. d4 Nf6 3. c4 e6 4. g3 dxc4 5. Bg2 a6 6. O-O Nc6 7. Nc3 Rb8 8. e4 Be7 9. d5 exd5 10. exd5 Nb4 {E04: Open Catalan: 5 Nf3.} 11. Ne5 Bf5 12. Nxc4 {Nowadays more popular than 12.a3.} Bd3 {The position is equal.} 13. b3 {[%cal Bb2b3,Bb3b4][%mdl 32]} Bxf1 14. Kxf1 a5 $1 15. a3 Na6 16. Nxa5 {[#]} Nc5 $146 (16... O-O $11) ({Predecessor:} 16... O-O 17. b4 Ne8 18. Be3 Bf6 19. Rc1 Bxc3 20. Rxc3 Nd6 21. Qd3 Qd7 22. Kg1 Rfe8 {½-½ (60) Mueller,N (2375)-Vogel,R (2447) Germany 2022}) 17. Bf4 {[%mdl 1024] White has strong compensation.} O-O 18. b4 $36 {[%mdl 2048] White is on the roll.} Na6 19. Nc4 {White is much more active.} Qd7 20. Qd3 ({White should try} 20. Kg1 $16) 20... Rfd8 (20... Bd6 $14) 21. Re1 Nh5 (21... Re8 $16) 22. Be3 $1 $18 Bf6 23. Ne4 {Black must now prevent Qe2.} Qb5 (23... g6 {keeps fighting.} 24. Nxf6+ Nxf6) 24. Nxf6+ $2 (24. g4 $18 Rxd5 25. Qe2) 24... Nxf6 $14 25. Bg5 {Hoping for Bxf6. This bishop pair is nice.} Re8 (25... Rxd5 $11 {was preferrable.} 26. Bxd5 Nxd5) 26. Bxf6 Rxe1+ 27. Kxe1 gxf6 28. Qc3 Re8+ 29. Ne3 Qb6 (29... Nb8 $11) 30. Kf1 $1 $16 Nb8 $1 31. Bh3 Qd6 32. Qd4 Qe5 33. Qd2 (33. Qg4+ $16 Kh8 34. Qh4) 33... Qe4 $11 34. Kg1 {Inhibits Qh1+.} Qb1+ 35. Nf1 Qe1 36. Qf4 {[%csl LRc7,LRf6]} Qe5 37. Qf3 Qa1 (37... Qe4 $11 38. Qxf6 Qxd5) 38. Bf5 (38. b5 $1 $16) 38... h6 {[#]} (38... Re1 $1 $11 39. Bh3 Qd4) 39. Kg2 $1 $16 Kf8 40. Qf4 Kg7 (40... Qxa3 $16 41. Ne3 (41. Qxc7 Qxb4 42. Qc1 Kg7 $11) (41. Qxh6+ Ke7 $16) 41... Qc3) 41. Ne3 $18 (41. Qxc7 $6 Qe5 42. Qxe5 fxe5 $14) 41... Qe5 42. Qh4 c6 (42... Kf8 {might work better.} 43. Qxh6+ Ke7) 43. Bc2 {Nf5+ is the strong threat.} Qg5 44. Nf5+ Kf8 (44... Kh8 $142 45. Qc4 (45. Nxh6 Qxh4 46. gxh4 Re2 $11) (45. Qxh6+ Qxh6 46. Nxh6 Re2 $11) 45... Rd8 46. dxc6 Nxc6 47. Qxf7 Ne5 48. Qxb7 Qg8) 45. Qd4 {Threatens to win with h4.} Re5 46. h4 (46. Qa7 Rxf5 47. Bxf5 (47. Qxb8+ Kg7 $14) (47. Qxb7 Rxd5 48. Qxb8+ Kg7 $15) 47... Qxf5 $14) 46... Qc1 47. dxc6 Qxc2 48. Qd8+ (48. Qd6+ $142 Kg8 49. c7 (49. Qxb8+ Kh7 $11) 49... Qe4+ 50. Kh2 Rxf5 51. cxb8=Q+ Kh7 52. Qd2) 48... Re8 {[#]} 49. c7 ({Wrong is} 49. Qxf6 $2 Qxc6+ 50. Qxc6 Nxc6 $19) 49... Qc6+ 50. Kh2 $2 (50. Kg1 Nd7 51. b5) 50... Na6 (50... Nd7) 51. c8=Q Qxc8 52. Qd6+ {Weighted Error Value: White=0.39/Black=0.46} 1-0

[Event "ESP-ch Teams Primera 2022"]
[Site "Sanxenxo Pontevedra"]
[Date "2022.09.23"]
[Round "7.12"]
[White "Calzetta Ruiz, Monica"]
[Black "Vega Gutierrez, Sabrina"]
[Result "0-1"]
[ECO "B30"]
[WhiteElo "2227"]
[BlackElo "2395"]
[Annotator "TA"]
[PlyCount "74"]
[EventDate "2022.09.17"]
[EventType "team-tourn"]
[EventCountry "ESP"]
[SourceTitle "playchess.com"]
[Source "ChessBase"]
[SourceQuality "1"]
[TimeControl "5400+30"]

{[%evp 19,74,23,14,16,22,14,6,16,16,-29,-50,-64,-40,-216,-218,-209,-100,-80,-80,-83,-86,-85,-97,-291,-283,-516,-442,-516,-384,-418,-403,-2044,-1980,-1675,-1230,-1206,-1173,-29991,-29992,-29992,-29989,-29989,-904,-908,-883,-1274,-870,-1598,-1507,-1431,-1187,-6536,-6536,-6532,-5793,-1148,-892]} 1. e4 c5 2. Nf3 Nc6 3. Nc3 Nf6 4. Bb5 g6 5. e5 Ng4 6. Bxc6 dxc6 7. h3 Nh6 8. O-O Bg7 9. d3 O-O 10. Re1 Nf5 11. Ne4 {B30: Sicilian: 2...Nc6 3 Bb5, lines without ...g6.} b6 12. c3 Ba6 13. g4 {The position is equal.} Nh6 14. c4 f5 {[#]} 15. Neg5 $146 ({Predecessor:} 15. g5 fxe4 16. gxh6 Rxf3 17. hxg7 Qxd3 18. Qxd3 exd3 19. b3 Kxg7 20. Bg5 Re8 21. Kg2 {0-1 (38) Castany Vilaseca,L-Ochoa de Echaguen,F (2410) Catalunya 1996}) 15... Qd7 {Prevents Ne6. Strongly threatening ...Rad8.} 16. Nxh7 $2 Kxh7 $19 17. g5 Nf7 (17... Ng8 $19 {is more deadly. aiming for ...Rad8.} 18. h4 Rad8) 18. e6 $17 {[#]} Qd6 19. exf7 Rad8 $36 {[%cal Oa6c4][%mdl 2048] And now ...Bxc4! would win. Black is on the roll.} ({Don't play} 19... Rxf7 $6 20. h4 $11) 20. Bd2 Qxd3 ({Much worse is} 20... Rxf7 $6 21. Bc3 $11) 21. Rxe7 $2 (21. Bc3 $17 {only move.}) 21... Bxc4 $19 22. h4 $2 (22. Re3 {keeps fighting.} Qd5 23. Qe1) 22... Rxf7 23. Re3 Qd6 24. h5 {[%cal Of3h4]} f4 {[%cal Bf5f4,Bf4e3][%mdl 32]} ({Don't go for} 24... Bxb2 $2 25. Qc2 Bxa1 26. Qxc4 $19) 25. Nh4 (25. Re1 $142 Bxb2 26. Rb1) 25... fxe3 26. hxg6+ Kg8 27. gxf7+ Bxf7 {[#] ( -> ...exf2+). A strong pair of Bishops.} 28. fxe3 Qg3+ 29. Ng2 Bd5 {[%csl Gd5][%cal Rg3g2]} 30. Qe2 Qxg2+ (30... Be5 $142 31. e4 Qh2+ 32. Kf2 Rf8+ 33. Bf4 Rxf4+ 34. Ke1 Rxe4 35. Qxe4 Bxe4 36. Rd1 Qh1+ 37. Kf2 Qxg2+ 38. Ke3 Qf3+ 39. Kd2 Qf2+ 40. Kc1 Bxb2#) 31. Qxg2 {Black is clearly winning.} Bxg2 {[%cal Bd5g2,Bg2f3,Bf3d1][%mdl 32]} 32. Bc3 Bf3 {Hoping for ...Bxc3.} 33. Kf2 Rd1 34. Rxd1 Bxd1 35. Kg3 Bxc3 36. bxc3 Kf7 37. Kf4 Ke6 {Weighted Error Value: White=1.29/Black=0.81} 0-1

[Event "ESP-ch Teams Primera 2022"]
[Site "Sanxenxo Pontevedra"]
[Date "2022.09.23"]
[Round "7.13"]
[White "Espinosa Aranda, Angel"]
[Black "Alsina Leal, Daniel"]
[Result "0-1"]
[ECO "B51"]
[WhiteElo "2428"]
[BlackElo "2525"]
[Annotator "TA"]
[PlyCount "104"]
[EventDate "2022.09.17"]
[EventType "team-tourn"]
[EventCountry "ESP"]
[SourceTitle "playchess.com"]
[Source "ChessBase"]
[SourceQuality "1"]
[TimeControl "5400+30"]

{[%evp 9,104,6,17,28,27,39,30,19,21,16,12,14,20,13,10,-27,-10,-14,10,0,-11,-31,-14,-18,0,-127,-88,-93,-24,-20,-26,-23,-26,-21,-20,-25,-38,-35,-34,-39,-21,-41,-39,-34,-34,-56,-41,-60,-60,-67,-60,-60,-60,-60,-60,-74,-67,-77,-62,-75,-53,-83,-51,-97,-6,-23,12,13,61,13,12,0,0,-533,-543,-543,-543,-543,-535,-537,-542,-542,-537,-532,-518,-473,-468,-453,-452,-598,-593,-598,-587,-572,-547,-531,-511]} 1. e4 {[%emt 0:00:04]} c5 {[%emt 0:00:06]} 2. Nf3 {[%emt 0:00:16]} d6 {[%emt 0:00:07]} 3. Bb5+ {[%emt 0:01:30]} Nd7 {[%emt 0:00:24]} 4. a4 {[%emt 0:01:53]} Ngf6 {[%emt 0:00:35]} 5. Nc3 {[%emt 0:00:13]} g6 {[%emt 0:02:31]} 6. a5 {[%emt 0:00:40] B51: Sicilian: Moscow Variation (3 Bb5+) without 3...Bd7.} Bg7 {[%emt 0:00:47]} 7. O-O {[%emt 0:02:58]} a6 {[%emt 0:03:56]} 8. Bc4 {[%emt 0:00:20][%cal Oc4f7] [#] Black must now prevent Bxf7+! White has an edge.} O-O {[%emt 0:00:11]} 9. d3 {[%emt 0:01:34]} Nb8 {[%emt 0:07:47]} 10. e5 {[%emt 0:03:36]} Ne8 {[%emt 0:03:49]} 11. exd6 {[%emt 0:19:51]} Nxd6 {[%emt 0:01:39]} 12. Nd5 {[%emt 0:03:27]} Nc6 {[%emt 0:02:29]} 13. Re1 {[%emt 0:13:20] [#]} Re8 $146 {[%emt 0:23:16]} ({Predecessor:} 13... Be6 14. Bb3 Bxd5 15. Bxd5 Nxa5 16. Qd2 Nc6 17. Bxc6 bxc6 18. Qa5 Qxa5 19. Rxa5 Nb7 {½-½ (32) Baltag,I (2405)-Miron,L (2507) Targu Mures 2021}) 14. Nb6 {[%emt 0:13:46]} Rb8 {[%emt 0:03:22]} 15. Qd2 {[%emt 0:00:11]} Nxc4 {[%emt 0:12:02]} 16. Nxc4 {[%emt 0:00:05]} e5 {[%emt 0:02:49]} 17. Qg5 {[%emt 0:06:02]} (17. Qd1 $1 $11) 17... f6 {[%emt 0:05:38]} 18. Qe3 {[%emt 0:02:27]} Nd4 {[%emt 0:06:25]} ({Better is} 18... Be6 $17 {aiming for ...Bxc4.} 19. Nb6 {[#]} Nxa5 $1 20. Qxc5 Nc6) 19. Nxd4 $11 {[%emt 0:00:09]} cxd4 {[%emt 0:00:07]} 20. Qg3 {[%emt 0:00:38]} Qc7 {[%emt 0:05:55]} 21. b3 {[%emt 0:01:20]} Bf5 {[%emt 0:02:45]} 22. Ba3 {[%emt 0:02:15]} Rbd8 {[%emt 0:00:08] Inhibits Bd6.} 23. Bb4 {[%emt 0:01:04]} Qc6 {[%emt 0:00:50]} 24. f3 {[%emt 0:00:12]} Bh6 {[%emt 0:03:01]} 25. Qf2 {[%emt 0:00:18]} Be6 {[%emt 0:01:31]} 26. Bd2 {[%emt 0:00:45]} Bf8 {[%emt 0:00:24][%cal Bh6f8,Bf8c5,Bc5a7,Ba7b8,Bb8c7][%mdl 32]} 27. Ra4 {[%emt 0:09:31]} Bd5 {[%emt 0:01:21]} 28. Ra2 {[%emt 0:00:59]} Bc5 {[%emt 0:00:52]} 29. Kh1 {[%emt 0:00:11]} Ba7 {[%emt 0:00:44]} 30. Raa1 {[%emt 0:02:23]} Bb8 {[%emt 0:01:20]} 31. Bb4 {[%emt 0:00:26]} Bc7 {[%emt 0:01:30]} 32. Bd2 {[%emt 0:02:54]} Re6 {[%emt 0:01:28]} 33. Rf1 {[%emt 0:02:26]} Rde8 {[%emt 0:00:26]} 34. Rae1 {[%emt 0:00:12]} f5 {[%emt 0:01:16]} 35. Re2 {[%emt 0:02:07]} Qc5 {[%emt 0:03:04]} 36. c3 {[%emt 0:01:35]} (36. Rb1 $15 {should be considered.}) 36... Bc6 {[%emt 0:02:39] Black is more active.} (36... Bxc4 $17 37. bxc4 Qd6) 37. Rfe1 {[%emt 0:00:31]} Qd5 {[%emt 0:00:46]} (37... Bxa5 $2 38. cxd4 Qb5 39. Bxa5 $18) 38. cxd4 {[%emt 0:02:00]} e4 {[%emt 0:00:29]} (38... exd4 $11 {is more appropriate.} 39. Rxe6 Rxe6) 39. dxe4 {[%emt 0:03:39]} (39. fxe4 $14 fxe4 40. dxe4 Rxe4 41. Rxe4 Rxe4 42. Rf1) 39... fxe4 {[%emt 0:00:05]} 40. fxe4 {[%emt 0:00:20]} Rxe4 $40 {[%emt 0:00:20][%mdl 128] Black mounts an attack.} 41. Ne5 $2 {[%emt 0:00:04][%mdl 8192]} (41. Rxe4 $11 {and White stays safe.} Rxe4 42. Rf1) 41... R8xe5 $19 {[%emt 0:01:17] Black is clearly winning.} 42. dxe5 {[%emt 0:01:13]} Qxe5 {[%emt 0:00:03][%csl Gc7][%cal Re5h2]} 43. Bf4 {[%emt 0:01:39]} Qxf4 {[%emt 0:00:28]} 44. Qxf4 {[%emt 0:00:20]} Rxf4 {[%emt 0:00:06]} 45. h3 {[%emt 0:00:56]} Bxa5 {[%emt 0:00:28]} 46. Rd1 {[%emt 0:00:14]} Bb6 {[%emt 0:00:28]} 47. Kh2 {[%emt 0:00:08]} Rf2 {[%emt 0:01:42]} 48. Rxf2 {[%emt 0:00:19]} Bxf2 {[%emt 0:00:05]} 49. b4 {[%emt 0:00:04]} Bh4 {[%emt 0:00:38]} 50. Rd4 {[%emt 0:00:21]} Bf6 {[%emt 0:00:15]} 51. Rc4 {[%emt 0:00:11]} Be5+ {[%emt 0:00:35]} 52. Kg1 {[%emt 0:00:07]} h5 {[%emt 0:00:37] Weighted Error Value: White=0.25 (precise) /Black=0.13 (very precise)} 0-1

[Event "ESP-ch Teams Primera 2022"]
[Site "Sanxenxo Pontevedra"]
[Date "2022.09.23"]
[Round "7.14"]
[White "Lorenzo De La Riva, Lazaro"]
[Black "Rubio Mejia, Luis Ignacio"]
[Result "0-1"]
[ECO "E46"]
[WhiteElo "2430"]
[BlackElo "2399"]
[Annotator "TA"]
[PlyCount "184"]
[EventDate "2022.09.17"]
[EventType "team-tourn"]
[EventCountry "ESP"]
[SourceTitle "playchess.com"]
[Source "ChessBase"]
[SourceQuality "1"]
[TimeControl "5400+30"]

{[%evp 9,184,0,0,-2,9,13,12,0,0,0,-6,0,0,0,0,0,10,0,0,0,0,-7,0,0,2,-114,-18,-100,0,-22,0,-9,-3,-62,12,9,22,15,35,5,5,5,5,10,17,18,19,18,83,76,75,56,62,67,61,53,41,31,31,16,15,17,29,0,20,13,43,19,37,35,61,28,28,0,41,0,47,19,35,31,31,7,45,41,66,50,74,74,76,74,74,74,84,54,60,58,74,0,0,-65,-64,-107,-106,-119,0,0,0,-150,-92,-178,-110,-117,-112,-119,-72,-112,-80,-80,-80,-80,-89,-89,-79,-89,-89,-89,-89,-109,-109,-119,-119,-140,-140,-230,-140,-140,-140,-140,-140,-140,-140,-140,-140,-140,-140,-140,-140,-140,-140,-204,-200,-184,-161,-230,-223,-188,-91,-160,-90,-169,0,-980,-968,-968,-932,-956,-866,-953,-792,-669,-660,-579,-555,-6391,-2792,-29989,-29990]} 1. d4 Nf6 2. c4 e6 3. Nc3 Bb4 4. e3 O-O 5. Bd2 c5 6. a3 {E46: Nimzo-Indian: Rubinstein: 4 e3 0-0 5 Ne2 without early Bd3.} Bxc3 7. Bxc3 Ne4 8. Rc1 {The position is equal.} d6 {[%cal Oe6e5]} 9. Nf3 b6 10. Be2 Bb7 11. O-O Nxc3 12. Rxc3 Nd7 13. b4 Qe7 14. Nd2 {[#]} Rac8 $146 ({Predecessor:} 14... a5 15. Bf3 axb4 16. axb4 cxb4 17. Rb3 d5 18. cxd5 Bxd5 19. Bxd5 exd5 20. Rb2 Ra3 {0-1 (68) Dzagnidze,N (2515)-Kosteniuk,A (2504) Saint Louis 2020}) 15. Bf3 Nf6 16. Re1 Rfd8 17. Nb3 (17. Qc2 $11) 17... Be4 (17... cxb4 $17 18. axb4 Bxf3 19. Qxf3 Nd5 $1) 18. Be2 (18. Bxe4 $1 $11 Nxe4 19. Rc1 (19. Rc2 f5 $11)) 18... Bb7 (18... cxb4 $17 19. axb4 Nd5) 19. Rc2 Bc6 (19... a5 $5) 20. Qc1 Ba4 21. Qb2 (21. Qb1 $11) 21... e5 (21... d5 $15) 22. Rcc1 $11 g6 23. Nd2 Bc6 24. b5 Bb7 25. d5 e4 26. a4 {[%cal Ba3a4,Ba4a5][%mdl 32]} Re8 27. a5 Rb8 ({Don't take} 27... bxa5 28. Nb3 $16) 28. Ra1 Qe5 (28... Nd7 $11) 29. Qxe5 $16 Rxe5 30. axb6 axb6 31. Ra7 Kf8 {[%cal Bg8f8,Bf8e8,Be8d8,Bd8c7,Bc7b8][%mdl 32]} 32. Bd1 Ke8 33. Bc2 Kd8 34. Rea1 Kc7 35. h3 Rbe8 36. Kh2 Kb8 37. R7a3 Kc7 38. Nf1 Bc8 39. Ng3 R8e7 40. Rf1 Nd7 41. Rfa1 Re8 42. Nf1 Nf6 43. Re1 Nh5 44. Bd1 Nf6 45. Be2 R5e7 46. g4 Re5 47. Ng3 h6 48. Rea1 R5e7 49. Ra7+ Bb7 50. Kg2 Re5 {[%cal Be7e5,Be5h5,Bh5h4][%mdl 32]} 51. Bd1 Kb8 52. R7a4 Kc7 53. Ne2 (53. h4 $16) 53... h5 $11 54. gxh5 (54. Nc3 $11) 54... Rxh5 $15 55. Ng3 Rh4 56. Bc2 {[#]} Bc8 (56... Nd7 $1 $17 57. Rh1 (57. Ra7 f5 $17) 57... Kb8) 57. Ra7+ $11 Bb7 58. Ne2 ({Only move:} 58. R7a4 $1 $11) 58... Reh8 (58... Nd7 $142 59. Nc3 f5) 59. Ng1 (59. Nc3 $17 {might work better.}) 59... Nh7 (59... Nd7 $19 60. Bd1 f5) 60. Kf1 $17 Ng5 61. Ke2 Re8 (61... f5 $142 62. Kd2 Kb8) 62. Kd2 Nxh3 63. Nxh3 Rxh3 64. Rg1 Rh2 65. Ke2 Kb8 66. Raa1 Bc8 {Against Rg4} 67. Ra2 Re5 68. Ke1 Rh4 69. Bd1 Re8 70. Be2 Reh8 71. Kd2 (71. Kf1 $17 {was called for.}) 71... Rh1 72. Raa1 R1h2 73. Ke1 Bf5 74. Ra6 Kb7 75. Ra1 Rh1 $36 {[%mdl 2048] Black is in control.} 76. Kd2 Rxg1 77. Rxg1 {[%mdl 4096] Endgame KRB-KRB} Rh2 78. Ke1 Bd7 79. Bd1 (79. Bg4 $17 {was worth a try.} Be8 80. Bd1) 79... Kc7 $19 80. Bg4 Be8 81. Bd1 (81. Be2 $142) 81... f5 82. Be2 Bf7 (82... Kd7 $19 83. Kf1 Ke7) 83. Rf1 ({White should try} 83. Rg3) 83... Kd7 {Black is more active.} (83... g5 $142 84. Rg1 g4) 84. Kd2 (84. f4 $17 {was necessary.}) 84... Kc7 $2 (84... g5 $19 {Strongly threatening ...Ke7.} 85. Rg1 g4) 85. f3 $2 {[%mdl 8192]} (85. Ke1 $11) 85... exf3 86. Rxf3 {[#]} g5 $1 87. Rxf5 Bh5 88. Rxg5 Bxe2 89. Rg7+ Kd8 90. Rg8+ Ke7 91. Rg7+ Kf6 92. Rd7 Bg4+ {Weighted Error Value: White=0.22 (precise) /Black=0.20 (precise)} 0-1

[Event "ESP-ch Teams Primera 2022"]
[Site "Sanxenxo Pontevedra"]
[Date "2022.09.23"]
[Round "7.15"]
[White "Almagro Llamas, Pablo"]
[Black "Alonso Moyano, Jonathan"]
[Result "1-0"]
[ECO "A27"]
[WhiteElo "2407"]
[BlackElo "2348"]
[Annotator "TA"]
[PlyCount "101"]
[EventDate "2022.09.17"]
[EventType "team-tourn"]
[EventCountry "ESP"]
[SourceTitle "playchess.com"]
[Source "ChessBase"]
[SourceQuality "1"]
[TimeControl "5400+30"]

{[%evp 17,101,-17,0,0,0,0,0,-10,0,0,0,0,0,0,0,0,0,0,0,0,0,0,0,0,0,0,7,0,23,23,23,8,8,8,49,42,41,44,79,91,103,79,139,133,116,116,170,171,175,184,176,204,219,148,243,237,246,226,285,279,291,293,412,395,428,361,630,563,675,662,862,805,1220,1066,1559,1374,1837,1535,1816,1759,2572,2371,2150,1930,2614,2612]} 1. c4 {[%emt 0:00:10]} e5 {[%emt 0:00:07][%cal Be7e5,Be5e4][%mdl 32]} 2. Nc3 {[%emt 0:00:32]} Nc6 {[%emt 0:00:14]} 3. Nf3 {[%emt 0:02:35]} f5 {[%emt 0:01:09]} 4. d4 {[%emt 0:04:09]} e4 {[%emt 0:00:07]} 5. d5 {[%emt 0:01:19]} exf3 {[%emt 0:06:15]} 6. dxc6 {[%emt 0:01:04]} fxg2 {[%emt 0:13:30]} 7. cxd7+ {[%emt 0:01:58]} Qxd7 {[%emt 0:00:09]} 8. Qxd7+ {[%emt 0:01:41]} Bxd7 {[%emt 0:00:05]} 9. Bxg2 {[%emt 0:00:07]} O-O-O {[%emt 0:01:48]} 10. Be3 {[%emt 0:03:50] A27: English Opening: Three Knights Variation.} a6 {[%emt 0:13:38]} 11. O-O-O {[%emt 0:07:44]} Nf6 {[%emt 0:02:00]} 12. Bd4 {[%emt 0:23:08] The position is equal.} Be7 {[%emt 0:06:13]} 13. Nd5 {[%emt 0:17:32]} Nxd5 {[%emt 0:04:51]} 14. Bxd5 {[%emt 0:01:20]} c6 {[%emt 0:01:44]} 15. Bf3 {[%emt 0:01:08]} Rhg8 {[%emt 0:00:36]} 16. h4 {[%emt 0:00:30]} Be6 {[%emt 0:02:28]} 17. b3 {[%emt 0:00:54] [#]} g6 $146 {[%emt 0:00:18]} ({Predecessor:} 17... c5 18. Be3 Rxd1+ 19. Kxd1 Bd6 20. Rg1 Rd8 21. Kc1 Rd7 22. Bd2 Be5 23. Be3 Bd6 24. Bd2 Be5 25. Be3 Bd6 {½-½ (25) Staller,P (2244)-Weise,M (2171) Germany 2011}) 18. e3 {[%emt 0:05:42]} Rd7 {[%emt 0:07:19]} 19. Bb6 {[%emt 0:03:59]} Rf8 {[%emt 0:07:14]} 20. Rxd7 {[%emt 0:03:31]} Bxd7 {[%emt 0:03:05]} 21. Bd4 {[%emt 0:00:17]} Bd6 {[%emt 0:09:56]} 22. Kd2 {[%emt 0:05:01]} c5 {[%emt 0:03:37]} 23. Bg7 {[%emt 0:01:31]} Rf7 {[%emt 0:00:40]} 24. Bh6 {[%emt 0:00:08]} f4 {[%emt 0:02:01] aiming for ...fxe3+.} 25. e4 {[%emt 0:00:52]} Bf8 {[%emt 0:06:34]} (25... b5 {keeps more tension.} 26. h5 bxc4 27. Be2 cxb3 28. Bxa6+ Kc7) 26. Bxf8 {[%emt 0:00:24]} Rxf8 $14 {[%emt 0:00:02][%mdl 4096] Endgame KRB-KRB} 27. Rg1 {[%emt 0:01:40]} Bc6 {[%emt 0:01:33]} 28. Rg5 {[%emt 0:01:21] White leaves nothing to chance now.} b6 {[%emt 0:00:28]} 29. h5 {[%emt 0:02:03]} gxh5 {[%emt 0:00:34]} (29... Kc7 $142) 30. Rxh5 $16 {[%emt 0:00:19]} Re8 {[%emt 0:02:03]} 31. Bg4+ {[%emt 0:00:13]} Kb8 {[%emt 0:00:23]} (31... Kd8 $16) 32. f3 $18 {[%emt 0:00:32]} (32. Rxh7 $6 Rxe4 33. Kc3 Rd4 $14) 32... Rg8 {[%emt 0:01:22][%cal Oc6e4] [#]} 33. Kd3 {[%emt 0:01:34]} (33. Rxh7 $6 Bxe4 34. Rf7 (34. fxe4 Rxg4 35. Rf7 Rg2+ 36. Kc3 Rxa2 $11) 34... Rd8+ 35. Kc1 Bc6 $14) 33... Rd8+ {[%emt 0:00:17]} 34. Ke2 {[%emt 0:00:12]} Rg8 {[%emt 0:00:19]} 35. Rh4 {[%emt 0:03:56]} h5 {[%emt 0:02:13]} (35... b5 $16 {was worth a try.} 36. Bh3 (36. Rxh7 bxc4 37. e5 cxb3 $16) 36... Kb7 37. Rxh7+ (37. Rxf4 Rg1 $16) 37... Kb6) 36. Bh3 {[%emt 0:00:15]} (36. Bxh5 Rh8 $17) (36. Rxh5 $6 Bxe4 37. fxe4 Rxg4 $16) 36... Rg1 {[%emt 0:02:26] [#]} 37. Bf1 $1 {[%emt 0:00:12]} (37. Rxf4 Ra1 $14) (37. Rxh5 Rh1 $16) 37... Kc7 {[%emt 0:00:43]} 38. Rxf4 {[%emt 0:00:28]} ({Resist} 38. Rxh5 $6 Rg6 39. Rh4 Rf6 $16) 38... Rg7 {[%emt 0:00:17]} 39. Rh4 {[%emt 0:00:38]} Rh7 {[%emt 0:00:13]} (39... Be8 {was called for.} 40. Ke3 b5) 40. Ke3 {[%emt 0:00:23]} b5 {[%emt 0:00:32]} 41. f4 {[%emt 0:00:31][%cal Bf3f4,Bf4f5,Bf5f6][%mdl 32]} Kb6 $2 {[%emt 0:00:21]} (41... Re7 42. f5 (42. Rxh5 Rxe4+ 43. Kd2 Rxf4 $11) 42... Kd7) 42. Be2 {[%emt 0:01:18] White is clearly winning.} Be8 43. f5 {[%emt 0:00:31]} Ka5 {[%emt 0:00:43]} 44. e5 {[%emt 0:00:57][%cal Be4e5,Be5e6][%mdl 32]} Rg7 {[%emt 0:00:51]} 45. f6 {[%emt 0:00:37]} Rg3+ {[%emt 0:00:57]} 46. Bf3 {[%emt 0:00:57]} Bf7 {[%emt 0:00:25]} 47. Kf4 {[%emt 0:00:27][%csl LRg3,LRh5]} Rg1 {[%emt 0:00:17]} 48. Bd5 {[%emt 0:00:19]} Bg6 {[%emt 0:00:51]} 49. e6 {[%emt 0:00:21]} Kb4 {[%emt 0:00:22]} 50. Ke5 {[%emt 0:00:26]} Ka3 {[%emt 0:00:24]} 51. f7 {[%emt 0:00:11] Weighted Error Value: White=0.06 (flawless) /Black=0.31} 1-0